fUSD/lending_fUSD_20250612
["ID","MTS","AMOUNT","RATE_DAILY","PERIOD"]
[365511019,1749726645950,-844.34532881,0.00017,2]
[365511020,1749726646008,-706.4092429,0.00017,2]
[365511021,1749726646019,-57257.54790873,0.00017,2]
[365511022,1749726646088,-50944.0,0.00017,2]
[365511023,1749726646100,-1961.01299288,0.00017,2]
[365511024,1749726646111,-3919.55509257,0.00017,2]
[365511034,1749726646214,-2504.85962256,0.00017,2]
[365511036,1749726646226,-3791.88748003,0.00017,2]
[365511038,1749726646238,-624.94584388,0.00017,2]
[365511040,1749726646253,-2358.95772199,0.00017,2]
[365511043,1749726646265,-701.51639585,0.00017,2]
[365511171,1749726700522,500.00000099,0.00024658,120]
[365511172,1749727035647,150.0,0.00016151,7]
[365511173,1749727044334,-157.88,0.00016151,2]
[365511174,1749727044360,-42.12,0.00016151,2]
[365511175,1749727081805,153.500078,0.00017002,5]
[365511176,1749727091706,201.0,0.00015351,2]
[365511177,1749727091988,201.0,0.00015916,2]
[365511179,1749727110606,12650.0,0.0002,30]
[365511180,1749727168121,163.2,0.00017002,10]
[365511181,1749727209421,-157.88,0.00016004,2]
[365511182,1749727224881,-24.03684472,0.00016004,2]
[365511184,1749727451786,201.0,0.00015482,2]
[365511185,1749727453683,3431.91,0.00016,2]
[365511186,1749727479734,250.0,0.00015951,2]
[365511187,1749727484570,263.94293665,0.00015871,2]
[365511188,1749727521001,162.371147,0.00015958,2]
[365511191,1749727651330,-200.0,0.00016036,2]
[365511192,1749727651351,-245.21,0.00016057,2]
[365511193,1749727651373,-201.0,0.0001606,2]
[365511194,1749727651394,-1000.0,0.00016076,2]
[365511195,1749727651415,-344.00345182,0.00016104,2]
[365511196,1749727670016,732.27,0.00014111,2]
[365511198,1749727718494,4556.50591635,0.000151,2]
[365511199,1749727718518,10000.0,0.000151,2]
[365511200,1749727718542,10000.0,0.000151,2]
[365511201,1749727718567,10000.0,0.000151,2]
[365511202,1749727718592,10000.0,0.000151,2]
[365511203,1749727718619,10000.0,0.000151,2]
[365511204,1749727718645,10000.0,0.000151,2]
[365511205,1749727718671,10000.0,0.000151,2]
[365511206,1749727718695,10000.0,0.000151,2]
[365511207,1749727718719,10000.0,0.000151,2]
[365511208,1749727718745,4306.46408265,0.000151,2]
[365511209,1749727725945,986.32031607,0.000246,120]
[365511215,1749727737178,263.89,0.00013699,2]
[365511223,1749727746601,1192.7183501,0.00024658,120]
[365511226,1749727756094,-200.0,0.00016029,2]
[365511227,1749727756119,-855.99654818,0.00016104,2]
[365511228,1749727756142,-300.0,0.00016104,2]
[365511229,1749727756164,-3588.19145582,0.00016105,2]
[365511231,1749727759104,-20311.80854418,0.00016105,2]
[365511252,1749727811854,201.0,0.00015638,2]
[365511255,1749727828168,302.0,0.00024658,120]
[365511257,1749727831755,-892.29,0.00016151,2]
[365511259,1749727831778,-107.71,0.00016174,2]
[365511288,1749727832052,-392.29,0.00016174,2]
[365511290,1749727832062,-67.71,0.0001623,2]
[365511293,1749727832076,-133.29,0.0001623,2]
[365511295,1749727832086,-595.86189727,0.00016375,2]
[365511299,1749727832182,-136.40810273,0.00016375,2]
[365511300,1749727832192,-187.54904841,0.00016499,2]
[365511301,1749727832204,-297.92695159,0.00016499,2]
[365511302,1749727832214,-19.58625958,0.00016499,2]
[365511303,1749727832227,-280.41374042,0.00016499,2]
[365511304,1749727832237,-1200.0,0.00016499,2]
[365511305,1749727832248,-24812.08722658,0.000165,2]
[365511307,1749727832259,-166.65,0.00016505,2]
[365511308,1749727832269,-250.0,0.0001669,2]
[365511309,1749727832279,-867.9924602,0.00016744,2]
[365511310,1749727832289,-201.0,0.00016821,3]
[365511311,1749727832298,-158.7773956,0.00016899,2]
[365511312,1749727832308,-207.35506412,0.00016899,2]
[365511313,1749727832317,-25279.33734164,0.000169,3]
[365511314,1749727832331,-9314.47746071,0.000169,3]
[365511325,1749727832854,-11418.03741762,0.000169,3]
[365511339,1749727832976,-11548.65435185,0.000169,3]
[365511341,1749727832986,-548.37919789,0.000169,2]
[365511343,1749727832995,-298.77669866,0.000169,2]
[365511345,1749727833006,-163.71609128,0.000169,2]
[365511347,1749727833016,-797.09,0.00016942,2]
[365511349,1749727833026,-71711.03035816,0.0001696,2]
[365511351,1749727833036,-500.0,0.00016973,2]
[365511353,1749727833046,-500.0,0.00016973,2]
[365511355,1749727833056,-500.0,0.00016973,2]
[365511357,1749727833066,-500.0,0.00016973,2]
[365511359,1749727833078,-500.0,0.00016973,2]
[365511361,1749727833089,-500.0,0.00016973,2]
[365511363,1749727833099,-500.0,0.00016973,2]
[365511365,1749727833109,-500.0,0.00016973,2]
[365511367,1749727833119,-500.4090381,0.00016973,2]
[365511369,1749727833129,-500.0,0.00016973,2]
[365511370,1749727833141,-153.06,0.0001699,2]
[365511372,1749727833155,-200.0,0.00016999,2]
[365511374,1749727833165,-212.82,0.00016999,2]
[365511376,1749727833176,-300.0,0.00016999,2]
[365511378,1749727833187,-300.0,0.00016999,2]
[365511380,1749727833196,-229.91509852,0.00017,3]
[365511382,1749727833206,-11305.00204149,0.00017,3]
[365511385,1749727833219,-460.0,0.00017,3]
[365511403,1749727837964,-219.48302284,0.000169,2]
[365511404,1749727837974,-423.82807152,0.00017,3]
[365511405,1749727837986,-483.02214773,0.00017,3]
[365511406,1749727837998,-1047.4468987,0.00017,3]
[365511407,1749727838010,-1566.49785525,0.00017,3]
[365511408,1749727838022,-1183.5969818,0.00017,3]
[365511409,1749727838054,-424.23994824,0.00017,3]
[365511410,1749727838067,-11240.2852865,0.00017,3]
[365511411,1749727838080,-1360.52970793,0.00017,3]
[365511412,1749727838092,-1570.00970237,0.00017,3]
[365511413,1749727838131,-5463.18,0.00017,3]
[365511414,1749727838205,-755.34738154,0.00017,3]
[365511415,1749727838221,-3212.8,0.00017,3]
[365511437,1749727840517,-2747.86367999,0.00017,3]
[365511445,1749727842654,-394.53781893,0.00017,3]
[365511468,1749727843194,-514.34978739,0.00017,3]
[365511469,1749727843206,-10708.56,0.00017,3]
[365511470,1749727843299,-288305.50487148,0.00017,3]
[365511471,1749727843308,-2690091.09921863,0.00017,2]
[365511472,1749727843319,-21412.0,0.00017,2]
[365511502,1749727843825,-500.0,0.00016899,2]
[365511503,1749727843836,-151.35,0.00016899,2]
[365511504,1749727843863,-348.65,0.00016899,2]
[365511505,1749727843872,-500.0,0.00016899,2]
[365511506,1749727843881,-228.12625637,0.00016899,2]
[365511507,1749727843890,-500.0,0.00016899,2]
[365511508,1749727843900,-500.0,0.00016899,2]
[365511509,1749727843909,-299.99176529,0.00016899,2]
[365511510,1749727843918,-500.0,0.00016899,2]
[365511511,1749727843927,-500.0,0.00016899,2]
[365511512,1749727843937,-500.0,0.00016899,2]
[365511513,1749727843945,-150.0,0.00016999,2]
[365511514,1749727843955,-12682.13682958,0.00017,2]
[365511515,1749727844093,-500.0,0.00016899,2]
[365511516,1749727844102,-549.59968879,0.00016899,2]
[365511517,1749727844112,-9673.97231121,0.00017,2]
[365511518,1749727844131,-500.0,0.00016899,2]
[365511519,1749727844142,-4940.0,0.00017,2]
[365511520,1749727844177,-21365.3579625,0.00017,2]
[365511521,1749727846542,-2069.91599265,0.000169,2]
[365511522,1749727846552,-4880.19407051,0.00017,2]
[365511523,1749727846571,-5350.0,0.00017,2]
[365511524,1749727846585,-1249.52636996,0.00017,2]
[365511525,1749727846600,-1064.57355304,0.00017,2]
[365511526,1749727846674,-895.14037744,0.00017,2]
[365511527,1749727846709,-2446.74397863,0.00017,2]
[365511528,1749727846720,-312.9070001,0.00017,2]
[365511529,1749727887499,600.0,0.000161,5]
[365511530,1749727889427,1200.0,0.000162,5]
[365511531,1749727891544,1900.0,0.000163,5]
[365511532,1749727893935,2500.0,0.000164,5]
[365511533,1749727895697,3100.0,0.000165,6]
[365511534,1749727898035,600.0,0.000166,6]
[365511535,1749727899862,600.0,0.000167,6]
[365511536,1749727901994,600.0,0.000168,6]
[365511537,1749727904132,600.0,0.000169,6]
[365511538,1749728144684,1000.0,0.00015994,2]
[365511539,1749728204821,4429.64591735,0.00015971,2]
[365511540,1749728204845,10000.0,0.00015971,2]
[365511541,1749728204868,9470.35408265,0.00015971,2]
[365511542,1749728243572,212.85,0.00015989,2]
[365511543,1749728532841,201.0,0.00015413,2]
[365511544,1749728559227,-250.0,0.00016009,2]
[365511545,1749728573752,150.0,0.00016009,7]
[365511546,1749728580921,115.79591735,0.00016,2]
[365511547,1749728580944,884.20408265,0.00016,2]
[365511555,1749728694763,1000.0,0.00017002,10]
[365511556,1749728700278,659.04,0.00014074,2]
[365511558,1749728739379,-201.0,0.00016032,2]
[365511559,1749728739403,-245.21,0.00016047,2]
[365511560,1749728739426,-600.0,0.00016052,4]
[365511561,1749728739450,-189.88,0.00016057,2]
[365511562,1749728739473,-659.04,0.00016338,2]
[365511563,1749728739497,-600.0,0.00016407,4]
[365511564,1749728739522,-201.0,0.00016651,3]
[365511565,1749728739545,-620.0,0.0001685,2]
[365511566,1749728739568,-300.0,0.00016873,2]
[365511567,1749728739591,-300.0,0.00016874,2]
[365511568,1749728739613,-300.0,0.00016879,2]
[365511569,1749728739635,-300.0,0.00016899,2]
[365511570,1749728739659,-1200.0,0.00016899,2]
[365511571,1749728739680,-300.0,0.00016899,2]
[365511572,1749728739701,-170.03189212,0.000169,2]
[365511573,1749728739722,-152.52053848,0.000169,2]
[365511574,1749728739744,-327.43218256,0.000169,2]
[365511575,1749728739766,-825.33747142,0.000169,2]
[365511576,1749728739787,-1079.8382505,0.000169,2]
[365511577,1749728739810,-851.22616415,0.0001692,2]
[365511578,1749728739830,-461.37,0.00016942,2]
[365511579,1749728739851,-157.83,0.00016962,2]
[365511580,1749728739871,-500.0,0.00016973,2]
[365511581,1749728739891,-500.0,0.00016973,2]
[365511582,1749728739910,-500.0,0.00016973,2]
[365511583,1749728739930,-500.0,0.00016973,2]
[365511584,1749728739950,-500.0,0.00016973,2]
[365511585,1749728739970,-500.0,0.00016973,2]
[365511586,1749728739990,-500.0,0.00016973,2]
[365511587,1749728740010,-350.0,0.00016983,2]
[365511588,1749728740030,-5110.0767349,0.0001699,2]
[365511589,1749728740051,-165.46,0.0001699,2]
[365511590,1749728740072,-165.46,0.0001699,2]
[365511591,1749728740095,-505.51107653,0.00016994,2]
[365511592,1749728740116,-6846.1939487,0.00016995,2]
[365511593,1749728740138,-300.0,0.00016999,2]
[365511594,1749728740159,-203.95,0.00016999,2]
[365511595,1749728740179,-300.0,0.00016999,2]
[365511596,1749728740201,-307.04182332,0.00016999,2]
[365511597,1749728749388,-229.91509852,0.00017,3]
[365511598,1749728749412,-318462.31020877,0.00017,3]
[365511599,1749728749435,-475412.36461003,0.00017,2]
[365511600,1749728763609,250.69,0.00013699,2]
[365511602,1749728793158,-153.93,0.00016613,2]
[365511603,1749728793179,-22.50942535,0.00016624,2]
[365511604,1749728833425,-131.42057465,0.00016624,2]
[365511605,1749728833448,-153.93,0.00016634,2]
[365511606,1749728833470,-3796.12265528,0.00016638,2]
[365511607,1749728862263,-176.25147797,0.00016028,2]
[365511608,1749728874682,-23.74852203,0.00016028,2]
[365511609,1749728874706,-245.13133442,0.00016555,2]
[365511610,1749728880832,-256.2396173,0.00016555,2]
[365511611,1749728886546,-15.86433928,0.00016555,2]
[365511612,1749728886570,-248.58989777,0.00016638,2]
[365511613,1749728890919,-51.72744695,0.00016638,2]
[365511614,1749728890945,-153.93,0.00016644,2]
[365511615,1749728890967,-84.13848118,0.00016655,2]
[365511616,1749728893756,-198.25206307,0.0001627,2]
[365511617,1749728895941,-2.74793693,0.0001627,2]
[365511618,1749728895965,-69.79151882,0.00016655,2]
[365511619,1749728895989,-137.67501495,0.0001666,2]
[365511620,1749728897863,-324.2948583,0.0001666,2]
[365511621,1749728901655,-117.40212675,0.0001666,2]
[365511622,1749728901677,-153.93,0.00016665,2]
[365511623,1749728901700,-1.03684225,0.00016676,2]
[365511627,1749728952993,-199.22388001,0.00016059,2]
[365511628,1749728955312,-205.0,0.00016059,2]
[365511629,1749728956640,-1680.27611999,0.00016059,2]
[365511630,1749728987791,3196.11230097,0.00016,2]
[365511631,1749728987812,1803.88769903,0.00016,2]
[365511644,1749729032908,-0.22349285,0.0001649,2]
[365511645,1749729032992,-632.77650715,0.0001649,2]
[365511646,1749729033001,-1030.457038,0.00016667,2]
[365511647,1749729033011,-152.89315775,0.00016676,2]
[365511648,1749729033020,-153.93,0.00016686,2]
[365511649,1749729033029,-153.93,0.00016696,2]
[365511650,1749729033040,-168.0,0.00016706,2]
[365511651,1749729033051,-300.0,0.00016899,2]
[365511652,1749729033061,-1200.0,0.00016899,2]
[365511653,1749729033071,-26241.29413387,0.000169,2]
[365511654,1749729033081,-4051.06680237,0.000169,2]
[365511655,1749729033091,-484.30516892,0.000169,2]
[365511656,1749729033101,-201.0,0.00016904,2]
[365511657,1749729033111,-387.12167847,0.00016973,2]
[365511658,1749729033121,-500.0,0.00016973,2]
[365511659,1749729033132,-500.0,0.00016973,2]
[365511660,1749729033142,-358.57296802,0.00016973,2]
[365511661,1749729033152,-500.0,0.00016973,2]
[365511662,1749729033162,-500.0,0.00016973,2]
[365511663,1749729033171,-151.0,0.0001699,2]
[365511664,1749729033181,-151.0,0.0001699,2]
[365511665,1749729033191,-151.0,0.0001699,2]
[365511666,1749729033201,-151.0,0.0001699,2]
[365511667,1749729033211,-151.0,0.0001699,2]
[365511668,1749729033222,-151.0,0.0001699,2]
[365511669,1749729033232,-151.0,0.0001699,2]
[365511670,1749729033243,-151.0,0.0001699,2]
[365511671,1749729033253,-151.0,0.0001699,2]
[365511672,1749729033263,-151.0,0.0001699,2]
[365511673,1749729033273,-151.0,0.0001699,2]
[365511674,1749729033284,-161.61531965,0.0001699,2]
[365511675,1749729033295,-234.57662391,0.00016991,2]
[365511676,1749729033304,-7232.5360478,0.00016992,2]
[365511677,1749729033314,-1097.45088849,0.00016999,2]
[365511678,1749729033325,-300.0,0.00016999,2]
[365511679,1749729033335,-9668.24512021,0.00016999,2]
[365511680,1749729033345,-199.22388001,0.00017,3]
[365511681,1749729033354,-159333.65510438,0.00017,3]
[365511682,1749729033364,-579231.87815039,0.00017,2]
[365511683,1749729033437,-1332.37184721,0.00017,2]
[365511684,1749729033520,-692.55818729,0.00017,2]
[365511685,1749729033539,-2141.58418,0.00017,2]
[365511686,1749729033553,-10800.0,0.00017,2]
[365511689,1749729038101,-393.21727485,0.00017,2]
[365511690,1749729038163,-431.15044832,0.00017,2]
[365511691,1749729040014,1011.33,0.00024657,120]
[365511698,1749729040295,-2998985.29310502,0.00017,2]
[365511705,1749729041384,-0.00971495,0.00017,2]
[365511710,1749729043759,-19.60438062,0.00017,2]
[365511711,1749729043771,-374.26001744,0.00017,2]
[365511712,1749729072994,-151.0,0.0001627,2]
[365511713,1749729078894,-83.0,0.0001627,2]
[365511714,1749729090935,1000.0,0.00024658,120]
[365511715,1749729105172,5000.0,0.00016,2]
[365511716,1749729122231,1000.0,0.00017002,10]
[365511717,1749729138849,1402.17821832,0.00016001,2]
[365511718,1749729138875,1704.62178168,0.00016001,2]
[365511719,1749729178540,76926.68265361,0.00017,5]
[365511720,1749729223146,-187.99529666,0.00016102,2]
[365511721,1749729226666,-159.99181557,0.00016102,2]
[365511722,1749729228894,-289.81557007,0.00016102,2]
[365511723,1749729230533,-109.7173177,0.00016102,2]
[365511724,1749729232848,-228.87788377,0.0001666,2]
[365511726,1749729257436,-181.69588636,0.00016093,2]
[365511727,1749729260009,-185.01211623,0.00016093,2]
[365511728,1749729263945,-292.77322553,0.00016093,2]
[365511729,1749729265496,-379.76551022,0.00016093,2]
[365511730,1749729268152,-152.5606783,0.00016093,2]
[365511731,1749729270368,-207.22677447,0.00016093,2]
[365511732,1749729272962,-250.0,0.00016093,2]
[365511733,1749729276470,-208.62809662,0.00016093,2]
[365511734,1749729280373,-309.20863847,0.00016093,2]
[365511735,1749729284999,-250.16446396,0.00016093,2]
[365511736,1749729287375,-188.17687768,0.00016093,2]
[365511737,1749729291866,-161.1233,0.00016093,2]
[365511738,1749729293918,-175.55145322,0.00016093,2]
[365511739,1749729297454,-248.5341741,0.00016093,2]
[365511740,1749729300670,12650.0,0.0002,30]
[365511741,1749729300701,-180.93385141,0.00016093,2]
[365511742,1749729302864,-220.04675857,0.00016092,2]
[365511743,1749729306769,-232.43301651,0.00016092,2]
[365511744,1749729313212,-177.12607693,0.00016092,2]
[365511745,1749729315418,-283.00080979,0.00016092,2]
[365511746,1749729317158,-250.0,0.00016092,2]
[365511747,1749729319592,-37.3933382,0.00016092,2]
[365511748,1749729319615,-127.25408006,0.00016093,2]
[365511749,1749729322682,-256.04178212,0.00016093,2]
[365511750,1749729323954,-262.22650481,0.00016093,2]
[365511751,1749729327028,-288.37076245,0.00016093,2]
[365511752,1749729329323,-243.6168107,0.00016093,2]
[365511753,1749729331975,-210.76660936,0.00016058,2]
[365511754,1749729334733,-309.76339064,0.00016058,2]
[365511755,1749729334757,-11.25788124,0.00016093,2]
[365511756,1749729339349,-301.47368583,0.00016093,2]
[365511757,1749729340971,-292.11992471,0.00016093,2]
[365511758,1749729345104,-257.08623452,0.00016093,2]
[365511759,1749729348113,-417.95568379,0.00016093,2]
[365511760,1749729350634,-300.0,0.00016092,2]
[365511761,1749729350661,-199.40698237,0.00016093,2]
[365511762,1749729352722,-301.92324143,0.00016093,2]
[365511763,1749729355133,-210.68290712,0.00016093,2]
[365511764,1749729358659,-190.62444018,0.00016093,2]
[365511765,1749729360697,-160.37555982,0.00016093,2]
[365511766,1749729364210,-257.73821788,0.00016092,2]
[365511767,1749729366825,-42.26178212,0.00016092,2]
[365511768,1749729366848,-206.88157774,0.00016093,2]
[365511769,1749729370571,-216.82149945,0.00016093,2]
[365511770,1749729372389,-222.86778764,0.00016093,2]
[365511771,1749729373688,-182.37190338,0.00016093,2]
[365511772,1749729375839,-306.46735254,0.00016093,2]
[365511773,1749729378068,-193.65132689,0.00016093,2]
[365511774,1749729380526,-347.12,0.00016012,2]
[365511775,1749729382609,-311.09829226,0.00016012,2]
[365511776,1749729385930,-151.0,0.00016012,2]
[365511777,1749729387515,-184.56958982,0.00016012,2]
[365511778,1749729391225,-366.52053621,0.00016012,2]
[365511779,1749729399640,-168.66342984,0.00016012,2]
[365511780,1749729401439,1975.36556489,0.00015993,2]
[365511781,1749729404163,-268.29991772,0.00016012,2]
[365511782,1749729407022,-250.0,0.00016012,2]
[365511783,1749729409723,-30.82519315,0.00016012,2]
[365511784,1749729409749,-269.17480685,0.00016093,2]
[365511785,1749729412396,-299.0,0.00016093,2]
[365511786,1749729415904,-201.0,0.00016093,2]
[365511787,1749729417587,-152.0,0.00016093,2]
[365511788,1749729420434,-231.85590464,0.00016093,2]
[365511789,1749729422766,-196.07197519,0.00016093,2]
[365511790,1749729424809,-265.95348218,0.00016093,2]
[365511791,1749729427113,-151.0,0.00016093,2]
[365511792,1749729429716,-363.49041582,0.00016093,2]
[365511793,1749729444748,-151.0,0.00016093,2]
[365511794,1749729447301,-247.45224074,0.00016093,2]
[365511795,1749729450157,1000.0,0.00024657,120]
[365511796,1749729450573,-187.37967098,0.00016093,2]
[365511797,1749729466132,500.0,0.00024657,120]
[365511798,1749729490423,500.0,0.00024657,120]
[365511799,1749729498578,769.0,0.00024657,120]
[365511800,1749729501716,-312.04654143,0.00016012,2]
[365511801,1749729501919,663.61265566,0.00015992,2]
[365511802,1749729504947,-198.07675857,0.00016012,2]
[365511803,1749729507898,-151.0,0.00016012,2]
[365511804,1749729510836,-32.758062,0.00016012,2]
[365511805,1749729510860,-129.26786967,0.00016025,2]
[365511806,1749729512615,-201.0,0.00016025,2]
[365511807,1749729515359,-159.99181557,0.00016025,2]
[365511808,1749729519740,-187.99529666,0.00016025,2]
[365511809,1749729526782,20060.48590281,0.00024649,120]
[365511810,1749729535732,-399.53288777,0.00016025,2]
[365511811,1749729550748,-175.55145322,0.00016025,2]
[365511812,1749729564715,-299.0,0.00016025,2]
[365511813,1749729579606,-59.39067711,0.00016025,2]
[365511814,1749729579629,-92.60932289,0.0001603,2]
[365511815,1749729582787,-207.22677447,0.0001603,2]
[365511816,1749729590541,150.0,0.0001601,7]
[365511817,1749729595001,-171.94691659,0.0001603,2]
[365511818,1749729596982,-161.85310669,0.0001603,2]
[365511819,1749729598824,-403.83387936,0.0001603,2]
[365511820,1749729612015,202.0,0.00015538,2]
[365511821,1749729704722,210.68290712,0.00015992,2]
[365511822,1749729729616,948.33887233,0.00015913,2]
[365511823,1749729729640,1256.86112767,0.00015913,2]
[365511824,1749729752261,1855.49,0.00024658,120]
[365511825,1749729776207,621.71,0.00013967,2]
[365511827,1749729852793,175.11,0.00015869,2]
[365511828,1749729852986,175.11,0.00015908,2]
[365511829,1749729853207,175.11,0.00015948,2]
[365511830,1749729906596,250.0,0.00015864,2]
[365511831,1749729971727,202.0,0.00015164,2]
[365511832,1749729972011,202.0,0.00015805,2]
[365511834,1749729995181,238.15,0.00013699,2]
[365511835,1749730000291,78069.69554579,0.000169,5]
[365511836,1749730132963,157.83,0.00015741,2]
[365511837,1749730134551,546.11887233,0.00015741,2]
[365511838,1749730134573,251.69112767,0.00015741,2]
[365511839,1749730139482,200.0,0.00015971,2]
[365511840,1749730153447,-151.0,0.00016083,2]
[365511841,1749730153469,-600.0,0.00016087,4]
[365511842,1749730153493,-1200.0,0.00016092,2]
[365511843,1749730153516,-300.0,0.00016092,2]
[365511844,1749730153540,-300.0,0.00016092,2]
[365511845,1749730153563,-600.0,0.00016092,4]
[365511846,1749730153586,-300.0,0.00016092,2]
[365511847,1749730153610,-1460.75181041,0.00016093,2]
[365511848,1749730163288,-7321.86985656,0.00016093,2]
[365511887,1749730232575,-4181.16686127,0.00016093,2]
[365511888,1749730232585,-600.0,0.00016093,4]
[365511889,1749730232594,-151.0,0.00016093,2]
[365511890,1749730232604,-302.0,0.00016093,2]
[365511891,1749730232614,-151.0,0.00016138,2]
[365511892,1749730232623,-690.0,0.00016148,2]
[365511893,1749730232633,-151.0,0.00016149,2]
[365511894,1749730232643,-1957.856,0.00016149,2]
[365511895,1749730232652,-207.4,0.00016149,2]
[365511896,1749730232662,-323.14923167,0.00016174,2]
[365511897,1749730232671,-500.0,0.00016174,2]
[365511898,1749730232681,-151.0,0.00016191,2]
[365511899,1749730232692,-151.0,0.00016193,2]
[365511900,1749730232701,-1616.58090047,0.00016204,2]
[365511901,1749730232711,-621.71,0.00016231,2]
[365511902,1749730232720,-283.09327194,0.00016248,2]
[365511903,1749730232730,-202.0,0.00016445,3]
[365511904,1749730232740,-587.51,0.000165,2]
[365511905,1749730232752,-454.71,0.000165,2]
[365511906,1749730232762,-1049.394261,0.0001666,2]
[365511907,1749730232771,-500.0,0.00016699,2]
[365511908,1749730232780,-500.0,0.00016699,2]
[365511909,1749730232790,-247.86254168,0.00016699,2]
[365511910,1749730232799,-1163.98,0.000167,2]
[365511911,1749730232809,-150.0,0.000167,2]
[365511912,1749730232819,-1000.0,0.00016749,2]
[365511913,1749730232828,-1000.0,0.000168,2]
[365511914,1749730232837,-500.0,0.00016863,2]
[365511916,1749730232847,-500.0,0.00016864,2]
[365511917,1749730232856,-200.0,0.00016864,2]
[365511918,1749730232865,-3956.5751,0.00016895,2]
[365511919,1749730232875,-556.87923795,0.000169,2]
[365511920,1749730232884,-2335.83602064,0.000169,2]
[365511921,1749730232894,-362.19751711,0.000169,2]
[365511922,1749730232903,-477.97529484,0.000169,2]
[365511923,1749730232913,-192.35230473,0.000169,2]
[365511924,1749730232922,-674.89890658,0.000169,2]
[365511925,1749730232931,-20180.75089994,0.000169,2]
[365511926,1749730232942,-867.9924602,0.00016942,2]
[365511927,1749730232954,-170.73,0.00016957,2]
[365511928,1749730232963,-167.18832609,0.00016973,2]
[365511929,1749730232973,-500.0,0.00016973,2]
[365511930,1749730232982,-500.0,0.00016973,2]
[365511931,1749730232993,-500.0,0.00016973,2]
[365511932,1749730233003,-502.73337216,0.00016973,2]
[365511933,1749730233012,-500.0,0.00016973,2]
[365511934,1749730233023,-500.0,0.00016973,2]
[365511935,1749730233033,-500.0,0.00016973,2]
[365511936,1749730233043,-500.0,0.00016973,2]
[365511937,1749730233053,-150.0,0.0001699,2]
[365511938,1749730233063,-198.72,0.0001699,2]
[365511939,1749730233073,-198.72,0.0001699,2]
[365511940,1749730233083,-198.72,0.0001699,2]
[365511941,1749730233093,-198.72,0.0001699,2]
[365511942,1749730233103,-198.72,0.0001699,2]
[365511943,1749730233112,-150.0,0.0001699,2]
[365511944,1749730233123,-150.0,0.0001699,2]
[365511945,1749730233133,-150.0,0.0001699,2]
[365511946,1749730233143,-500.0,0.0001699,2]
[365511947,1749730233152,-6261.3627684,0.00016995,2]
[365511948,1749730233162,-195.45,0.00016999,2]
[365511949,1749730233172,-226.08080724,0.00016999,2]
[365511950,1749730233182,-397.23777792,0.00016999,2]
[365511951,1749730233192,-253.91367269,0.00016999,2]
[365511952,1749730233201,-253.02591393,0.00016999,2]
[365511953,1749730233211,-500.0,0.00016999,2]
[365511954,1749730233221,-692.0,0.00017,2]
[365511955,1749730233230,-521627.0077601,0.00017,2]
[365511968,1749730233480,-106936.5234354,0.00017,2]
[365511970,1749730233493,-60782.24328297,0.00017,2]
[365511973,1749730233504,-313.26189526,0.00017,2]
[365512485,1749730238936,-500.0,0.00016894,2]
[365512486,1749730238949,-293.57586069,0.00016894,2]
[365512487,1749730238958,-500.0,0.00016894,2]
[365512488,1749730238968,-500.0,0.00016894,2]
[365512489,1749730238978,-500.0,0.00016894,2]
[365512490,1749730238989,-150.0,0.00016894,2]
[365512491,1749730239001,-3439.42413931,0.00017,3]